Cogmind - Beta 17 @@@ ROGUE MODE // 2026.06.23 @ 18:10:59 Player: Lolterzard Result: Destroyed by Y-54 Guardian with Flak Gun Performance ------------- Evolutions (4) 2000 Regions Visited (5) 1000 Robots Destroyed (21) 105 Value Destroyed (499) 499 Prototype IDs (0) 0 Alien Tech Used (0) 0 Bonus (800) 800 TOTAL SCORE: 4404 Bonus ------- Registered with UFD 300 Met Optimus in HQ 500 Cogmind --------- Core Integrity 0/850 Matter 278/300 Energy 100/100 System Corruption 6% Temperature Cool (12) Movement Core (350) Ox6 Location -6/Factory Parts ------- > --- POWER (2) -------- (None) > --- PROPULSION (5) --- (None) > --- UTILITY (6) ------ Large Storage Unit > --- WEAPON (2) ------- (None) > --- INVENTORY (15) --- Light Nuclear Core Peak State ------------ > --- POWER ------------ Ion Engine > --- PROPULSION ------- Light Treads Gravmag System Gravmag System Gravmag System > --- UTILITY ---------- Large Storage Unit Seismic Detector Hardened Heavy Armor Plating > --- WEAPON ----------- (None) > --- INVENTORY -------- Small Storage Unit Datajack [Rating: 24] Favorites ----------- Power Ion Engine Engine Ion Engine Power Core Light Nuclear Core Propulsion Light Treads Treads Light Treads Wheel Compact Wheel Hover Unit Gravmag System Utility Large Storage Unit Device Seismic Detector Storage Large Storage Unit Protection Hardened Heavy Armor Plating Weapon Light Assault Rifle Energy Gun Medium Laser Ballistic Gun Light Assault Rifle Impact Weapon Great Maul Special Melee Weapon Datajack Build | -11 -10 -10 -8 -8 -6 ------- Run | Yrd Mat Sub Rec Scr Fac Slots Evolved 8 | . . . . . 8 Power 1 | . . . . . 1 Propulsion 3 | . . . . . 3 Utility 4 | . . . . . 4 Weapon . | . . . . . . Parts Attached 32 | 7 1 2 2 . 20 Power 5 | 1 . . 1 . 3 Engine 3 | 1 . . 1 . 1 Core 2 | . . . . . 2 Reactor . | . . . . . . Propulsion 12 | 2 . 1 1 . 8 Treads 5 | 2 . 1 1 . 1 Leg . | . . . . . . Wheel 3 | . . . . . 3 Hover 4 | . . . . . 4 Flight . | . . . . . . Utility 7 | 2 1 . . . 4 Device 2 | 1 . . . . 1 Storage 2 | 1 1 . . . . Processor . | . . . . . . Hackware . | . . . . . . Protection 3 | . . . . . 3 Artifact . | . . . . . . Weapon 8 | 2 . 1 . . 5 Energy Gun 2 | . . 1 . . 1 Energy Cannon . | . . . . . . Ballistic Gun 4 | 2 . . . . 2 Ballistic Cannon . | . . . . . . Launcher . | . . . . . . Special Weapon . | . . . . . . Impact Weapon 1 | . . . . . 1 Slashing Weapon . | . . . . . . Piercing Weapon . | . . . . . . Special Melee Weapon 1 | . . . . . 1 Unidentified Prototypes . | . . . . . . Parts Lost 30 | . . 5 . . 25 Power 4 | . . 1 . . 3 Propulsion 12 | . . 2 . . 10 Utility 6 | . . . . . 6 Weapon 8 | . . 2 . . 6 Highest Loss Streak 11 | . . 5 . . 11 To Critical Strikes . | . . . . . . Average Backups 3 | 3 5 5 2 2 1 Power . | . 1 1 . . . Propulsion . | 1 2 1 . . . Utility . | . . 1 1 1 . Weapon . | . 1 . . . . Tool/Special . | . . . . . . Unused Backups 2 | . 2 . . . . Power . | . . . . . . Propulsion 2 | . 2 . . . . Utility . | . . . . . . Weapon . | . . . . . . Tool/Special . | . . . . . . Average Slot Usage (%) 77 | . 100 99 83 85 43 Engine 10 | . 14 13 12 14 3 Treads 21 | . 28 28 28 28 5 Hover 1 | . . . . . 5 Device 10 | . 14 14 14 14 4 Storage 12 | . 14 14 14 14 9 Protection 1 | . . . . . 4 Energy Gun 5 | . . . 14 14 3 Ballistic Gun 10 | . 28 26 . . . Peak Build Rating 24 | 7 7 7 6 6 24 Average Rating 8 | 5 7 6 5 6 14 On Entrance 5 | . 7 7 4 6 6 Avg Prop Armor Cover (%) 12 | 28 . . . . 7 Naked Turns . | . . . . . . Heaviest Build 57 | 13 28 29 28 28 57 Greatest Support 42 | 40 40 40 40 40 42 Greatest Overweight (x) 17 | 3 . 1 . . 17 Average Overweight (x) . | . . . . . 1 Largest Inventory Capacity 15 | 8 15 15 15 15 15 Average Capacity 13 | 7 9 15 15 15 15 Most Carried 7 | 4 7 6 3 2 3 Average Carried 3 | 3 5 5 2 2 1 Final Capacity 15 | 8 15 15 15 15 15 Final Carried 6 | 4 6 4 2 2 1 Class Distribution -------------------- 94% | Mutant 5% | Scavenger-Mutant Dominant Class ---------------- Mutant | -10/Materials Mutant | -10/Subcaves Mutant | -8/Recycling Mutant | -8/Scraptown Mutant | -6/Factory Resources | -11 -10 -10 -8 -8 -6 ----------- Run | Yrd Mat Sub Rec Scr Fac Matter Collected 550 | 294 . 61 . 25 170 Remotely . | . . . . . . Salvage Created 742 | 93 . 155 . . 494 Parts 47 | 6 . 14 . . 27 Haulers Intercepted . | . . . . . . Recyclers Shooed 3 | . . . . . 3 Parts Field Recycled . | . . . . . . Retrieved Matter . | . . . . . . Parts Self-Destructed 12 | . . 12 . . . Prevented . | . . . . . . Parts Restored . | . . . . . . Kills | -11 -10 -10 -8 -8 -6 ------- Run | Yrd Mat Sub Rec Scr Fac Combat Hostiles Destroyed 15 | . . 6 . . 9 Melee 3 | . . . . . 3 Guns 11 | . . 6 . . 5 Classes Destroyed 8 | 2 . 2 . . 4 Worker 3 | . . . . . 3 Tunneler 1 | 1 . . . . . Recycler 2 | 1 . . . . 1 Swarmer 9 | . . 4 . . 5 Grunt 1 | . . . . . 1 Sentry 2 | . . . . . 2 Programmer 1 | . . . . . 1 Subdweller 2 | . . 2 . . . Best Kill Streak 5 | 1 . 4 . . 5 Combat Bots Only 4 | . . 4 . . 3 Max Kills in Single Turn 2 | 1 . 1 . . 2 Gunslinging 1 | . . . . . 1 Exploded . | . . . . . . Melee 1 | . . . . . 1 Uniques/NPCs Destroyed . | . . . . . . Combat | -11 -10 -10 -8 -8 -6 -------- Run | Yrd Mat Sub Rec Scr Fac Hostile Shots Fired 636 | . . 114 . . 522 Missed 198 | . . 33 . . 165 Hits 438 | . . 81 . . 357 Projectile 438 | . . 81 . . 357 AOE 1 | . . . . . 1 Critical Strikes 3 | . . 1 . . 2 Damage Taken 4416 | . . 804 . . 3612 Core 1058 | . . 206 . . 852 Absorbed by Shields 36 | . . . . . 36 Core Remaining (%) 58 | 100 . . . 17 . Volleys Fired 67 | 12 . 28 . . 27 Largest 2 | 2 . 2 . . 2 Hottest 103 | 40 . 70 . . 103 Shots Fired 115 | 24 . 54 . . 37 Gun 115 | 24 . 54 . . 37 Cannon . | . . . . . . Launcher . | . . . . . . Special . | . . . . . . Kinetic 90 | 24 . 49 . . 17 Thermal 25 | . . 5 . . 20 Explosive . | . . . . . . Electromagnetic . | . . . . . . Robot Hit Streak 11 | 3 . 7 . . 11 Robot Miss Streak 3 | 3 . 3 . . 3 Penetration Max . | . . . . . . Secondary Targets 3 | . . 2 . . 1 Max Gunslinging Chain 1 | . . 1 . . 1 Shots Hit Robots 98 | 13 . 36 . . 49 Core Hits 36 | 6 . 8 . . 22 Critical Kills 3 | . . 1 . . 2 Critical Parts Destroyed 4 | 1 . . . . 3 Critical Strikes 9 | 1 . 2 . . 6 Burn 1 | . . . . . 1 Destroy 4 | 1 . 2 . . 1 Smash 4 | . . . . . 4 Melee Attacks 23 | . . . . . 23 Impact 23 | . . . . . 23 Slashing . | . . . . . . Piercing . | . . . . . . Sneak Attacks 1 | . . . . . 1 Combat Hostiles . | . . . . . . Follow-up Attacks . | . . . . . . Damage Inflicted 1616 | 102 4 303 . . 1207 Guns 963 | 102 . 303 . . 558 Cannons . | . . . . . . Explosions . | . . . . . . Melee 647 | . . . . . 647 Ramming 6 | . 4 . . . 2 Kinetic 601 | 102 . 264 . . 235 Thermal 362 | . . 39 . . 323 Explosive . | . . . . . . Electromagnetic . | . . . . . . Impact 647 | . . . . . 647 Slashing . | . . . . . . Piercing . | . . . . . . Highest Corruption 6 | . . . . . 6 Average Corruption 3 | . . . . . 3 Corruption Purged . | . . . . . . Corruption Blocked . | . . . . . . Effects 11 | . . . . . 11 Message Errors 4 | . . . . . 4 Matter Fused 2 | . . . . . 2 Data Loss (minor) 2 | . . . . . 2 Data Loss (major) 1 | . . . . . 1 Misfires 1 | . . . . . 1 Alerts 1 | . . . . . 1 Overload Shots . | . . . . . . Overflow Damage 162 | . . . . . 162 Projectiles . | . . . . . . Explosions . | . . . . . . Melee 162 | . . . . . 162 Knockbacks . | . . . . . . Impact . | . . . . . . Kinetic . | . . . . . . Secondary . | . . . . . . Self-Inflicted Damage . | . . . . . . Shots . | . . . . . . Rammed 7 | . 1 . . . 6 Targets Rammed 7 | . 1 . . . 6 Kicked . | . . . . . . Crushed . | . . . . . . Highest Temperature 317 | . . . . . 317 Average Temperature 64 | . . . . . 64 Received Heat Transfer 1167 | . . 174 . . 993 Siege Activations . | . . . . . . Martial Activations . | . . . . . . Shielding Activations . | . . . . . . Robots Disrupted . | . . . . . . Combat Hostiles . | . . . . . . Robots Corrupted 1 | . . . . . 1 Combat Hostiles 1 | . . . . . 1 Parts Fried 1 | . . . . . 1 Impact Corruptions 9 | . . . . . 9 Robots Melted . | . . . . . . Combat Hostiles . | . . . . . . Parts Melted 1 | . . . . . 1 Heat Transferred 921 | . . 111 . . 810 Parts Sabotaged . | . . . . . . Parts Stolen . | . . . . . . Parts Stripped . | . . . . . . Power Chain Reactions . | . . . . . . Alert | -11 -10 -10 -8 -8 -6 ------- Run | Yrd Mat Sub Rec Scr Fac Maximum Alert Level . | . . . . . . Low Security (%) 100 | 100 100 . 100 . 100 Level 1 . | . . . . . . Level 2 . | . . . . . . Level 3 . | . . . . . . Level 4 . | . . . . . . Level 5 . | . . . . . . High Security . | . . . . . . Max Security . | . . . . . . Peak Influence 131 | 5 . . 16 . 131 Initial 16 | . . . 16 . . Average 16 | . . . 4 . 28 Influence Increases 419 | 10 . 110 4 . 295 Destroy 0b10 Robot/C 260 | . . 80 . . 180 Destroy 0b10 Robot/NC 30 | 10 . . . . 20 Destroy Leader 50 | . . . . . 50 Successful Hack 4 | . . . 4 . . Lose Combat Pursuer 75 | . . 30 . . 45 Influence Decreases 419 | 10 . 74 40 . 295 Entered New Map 20 | . . . 20 . . Time Decay 194 | 10 . 24 20 . 140 Lost Part 205 | . . 50 . . 155 Squads Dispatched 4 | . . . . . 4 Investigation . | . . . . . . Extermination 1 | . . . . . 1 Reinforcement . | . . . . . . Assault . | . . . . . . Garrison 3 | . . . . . 3 Intercept . | . . . . . . Searches Triggered . | . . . . . . Construction Impeded . | . . . . . . Haulers Reinforced . | . . . . . . Active Scanning Responses . | . . . . . . Cargo Convoy Interrupts . | . . . . . . Stealth | -11 -10 -10 -8 -8 -6 --------- Run | Yrd Mat Sub Rec Scr Fac Distress Signals . | . . . . . . Communications Jammed . | . . . . . . Distress Signals . | . . . . . . Times Spotted 25 | . . 9 . . 16 Peak Tracking Total 6 | . . 6 . . 4 Tactical Retreats 3 | . . 1 . . 2 Traps | -11 -10 -10 -8 -8 -6 ------- Run | Yrd Mat Sub Rec Scr Fac Traps Triggered 3 | . . . . . 3 Indirectly . | . . . . . . Trap Hack Attempts . | . . . . . . Triggered . | . . . . . . Disarmed . | . . . . . . Reprogrammed 6 | . 6 . . . . Reused . | . . . . . . Traps Extracted . | . . . . . . Installed . | . . . . . . Triggered . | . . . . . . Machines | -11 -10 -10 -8 -8 -6 ---------- Run | Yrd Mat Sub Rec Scr Fac Machines Disabled . | . . . . . . Max in Single Turn . | . . . . . . Machines Repaired . | . . . . . . Machines Dismantled . | . . . . . . Machines Sabotaged . | . . . . . . Overloaded Fab Kills . | . . . . . . Hacking | -11 -10 -10 -8 -8 -6 --------- Run | Yrd Mat Sub Rec Scr Fac Machines Accessed 12 | . 1 1 4 4 2 Terminals 4 | . 1 . 2 . 1 Fabricators 1 | . . . . . 1 Repair Stations . | . . . . . . Recycling Units . | . . . . . . Scanalyzers . | . . . . . . Garrison Access . | . . . . . . Total Hacks 65 | . 2 4 27 28 4 Successful 60 | . 2 4 26 28 . Failed 5 | . . . 1 . 4 Catastrophic 1 | . . . . . 1 Database Lockouts . | . . . . . . Manual 6 | . 1 . 3 . 2 Terminals 7 | . 2 . 3 . 2 Fabricators 2 | . . . . . 2 Repair Stations . | . . . . . . Recycling Units . | . . . . . . Scanalyzers . | . . . . . . Garrison Access . | . . . . . . Terminal Hacks 58 | . 2 4 24 28 . Record 56 | . . 4 24 28 . Locate Traps 1 | . 1 . . . . Reprogram Traps 1 | . 1 . . . . Fabricator Hacks . | . . . . . . Repair Station Hacks . | . . . . . . Recycling Unit Hacks . | . . . . . . Scanalyzer . | . . . . . . Garrison Access Hacks . | . . . . . . Unauthorized Hacks 2 | . . . 2 . . Terminals 2 | . . . 2 . . Botnet 2 | . . . 2 . . Fabricators . | . . . . . . Repair Stations . | . . . . . . Recycling Units . | . . . . . . Scanalyzers . | . . . . . . Garrison Access . | . . . . . . Data Cores Recovered . | . . . . . . Used . | . . . . . . Hacking Detections 2 | . 1 . . . 1 Full Trace Events . | . . . . . . Feedback Events . | . . . . . . Feedback Blocked . | . . . . . . Robot Schematics Acquired . | . . . . . . Robots Built . | . . . . . . Authchips . | . . . . . . Time . | . . . . . . Total Robot Build Rating . | . . . . . . Part Schematics Acquired . | . . . . . . Parts Built . | . . . . . . Authchips . | . . . . . . Time . | . . . . . . Total Part Build Rating . | . . . . . . Part Studies Acquired . | . . . . . . Parts Repaired . | . . . . . . Time . | . . . . . . Parts Recycled . | . . . . . . Recycled Matter . | . . . . . . Retrieved Matter . | . . . . . . Retrieved Components . | . . . . . . Parts Scanalyzed . | . . . . . . Part Schematics Acquired . | . . . . . . Parts Damaged . | . . . . . . Bothacking | -11 -10 -10 -8 -8 -6 ------------ Run | Yrd Mat Sub Rec Scr Fac Used RIF Installer . | . . . . . . Robots Hacked . | . . . . . . Non-combat . | . . . . . . Combat . | . . . . . . Robot Hacks Applied . | . . . . . . Relay Couplers Released . | . . . . . . Fabnet Peak Effective % . | . . . . . . Robots Rewired . | . . . . . . Allies Hacked . | . . . . . . Hacks Repelled . | . . . . . . Allies | -11 -10 -10 -8 -8 -6 -------- Run | Yrd Mat Sub Rec Scr Fac Total Allies . | . . . . . . Largest Group . | . . . . . . Highest-Rated Group . | . . . . . . Highest-Rated Ally . | . . . . . . Initial UFD Resources 23 | . . . . . 23 Total Orders . | . . . . . . Ally Attacks . | . . . . . . Total Damage . | . . . . . . Kills . | . . . . . . Allies Corrupted . | . . . . . . Allies Melted . | . . . . . . Intel | -11 -10 -10 -8 -8 -6 ------- Run | Yrd Mat Sub Rec Scr Fac Active Infowar (turns) 1934 | 49 264 588 110 597 326 Seismic 1934 | 49 264 588 110 597 326 Robot Analysis Total . | . . . . . . Derelict Logs Recovered . | . . . . . . Drone Launches . | . . . . . . Drone Recoveries . | . . . . . . Exploration | -11 -10 -10 -8 -8 -6 ------------- Run | Yrd Mat Sub Rec Scr Fac Turns Passed 2451 | 162 264 588 110 597 730 Spaces Moved 1282 | 84 139 321 68 374 296 Core 45 | 34 . . . . 11 Treads 1084 | 50 139 321 68 374 132 Legs . | . . . . . . Wheels 29 | . . . . . 29 Hover 124 | . . . . . 124 Flight . | . . . . . . Fastest Speed 50 | 50 160 160 160 160 72 Average Speed 161 | 138 160 160 160 160 172 Slowest Speed 900 | 200 160 240 160 160 900 Overloaded Moves . | . . . . . . Propulsion Burnouts . | . . . . . . Robots Hopped . | . . . . . . Potential Cave-ins . | . . . . . . Cave-ins Triggered . | . . . . . . Exploration Rate (%) 19 | 4 27 25 13 38 9 Regions Visited 5 Branch Regions 3 Pre-discovered Areas . | . . . . . . Known Exits Taken 1 | . . 1 . . . Unknown Exits Taken 4 | 1 1 . 1 1 . Scrap Searched 2 | . . . . 2 . Spaces Dug . | . . . . . . Terrain Destroyed . | . . . . . . Melee . | . . . . . . Projectile . | . . . . . . AOE . | . . . . . . Terrain Rammed . | . . . . . . Walls Destroyed . | . . . . . . Machines Disabled . | . . . . . . Actions | -11 -10 -10 -8 -8 -6 --------- Run | Yrd Mat Sub Rec Scr Fac Total 1484 | 107 181 350 69 373 404 Wait 40 | . 36 . . . 4 Move 1277 | 83 138 320 67 373 296 Hop . | . . . . . . Pick Up 12 | 5 3 . . . 4 Fast Attach 20 | 6 . . . . 14 Attach 11 | 1 . 2 2 . 6 Detach . | . . . . . . Swap 4 | . 1 . . . 3 Drop 2 | . 2 . . . . Fire 67 | 12 . 28 . . 27 Melee 23 | . . . . . 23 Ram 6 | . . . . . 6 Kick . | . . . . . . Crush 1 | . 1 . . . . Escape Stasis 21 | . . . . . 21 Rewire . | . . . . . . Trap . | . . . . . . Miscellaneous . | . . . . . . Route ------- -11/Scrapyard -10/Materials -10/Subcaves -8/Recycling -8/Scraptown -6/Factory History --------- Turn | Location | Event 11 | -11/Scrapyard | Discovered new exit (range 15) 163 | -11/Scrapyard | Entered Materials 316 | -10/Materials | Build established: Mutant 418 | -10/Materials | Discovered new exit (range 4) 427 | -10/Materials | Entered Subcaves 517 | -10/Subcaves | Visited Clippyterm 522 | -10/Subcaves | Identified exit to Recycling 748 | -10/Subcaves | Shifting Twisted Machinery released Sub. Power Source 976 | -10/Subcaves | Core integrity fell below 50% 1007 | -10/Subcaves | Core integrity fell below 20% 1015 | -10/Subcaves | Entered Recycling 1041 | -8/Recycling | Lost 5 parts (1p2n2w) 1078 | -8/Recycling | Scanned before Scraplab entrance 1121 | -8/Recycling | Discovered new exit (range 3) 1125 | -8/Recycling | Entered Scraptown 1356 | -8/Scraptown | Visited UFD Registry 1356 | -8/Scraptown | Registered with UFD as "Microslasher" 1516 | -8/Scraptown | Visited Scrap Suit Storage 1597 | -8/Scraptown | Met Optimus 1597 | -8/Scraptown | Accepted into 0bPrime 1714 | -8/Scraptown | Discovered new exit (range 4) 1722 | -8/Scraptown | Entered Factory 1722 | -6/Factory | Evolved 8 slots: Power x1, Propulsion x3, Utility x4 1793 | -6/Factory | Spotted B-75 Beast 1975 | -6/Factory | Lost 3 parts (2n1w) 2073 | -6/Factory | Allied Derelicts emerged from ambush trap array 2093 | -6/Factory | Lost 4 parts (1p2n1u) 2125 | -6/Factory | Lost 3 allies 2167 | -6/Factory | Garrison activated, responded to threat 2195 | -6/Factory | Lost 3 parts (2n1w) 2333 | -6/Factory | Lost 3 parts (1n2u) 2407 | -6/Factory | Core integrity fell below 50% 2437 | -6/Factory | Core integrity fell below 20% 2452 | -6/Factory | Destroyed by Y-54 Guardian with Flak Gun Last Messages --------------- 02398_ Autogun destroyed. 02398_ Wheel destroyed. 02400_ Gatling Laser destroyed. 02401_ Com. Wheel destroyed. 02401_ Lgt. Nuclear Core destroyed. 02403_ Com. Wheel destroyed. 02406_ Autogun destroyed. 02408_ Destroyed Imp. Heat Sink. 02408_ Y-54 Guardian system corrupted by crushing effect. 02409_ Y-54 Guardian system terminally corrupted. 02417_ Imp. Heat Sink destroyed. 02420_ Great Maul destroyed. 02423_ Slammed into Y-54 Guardian. 02423_ Deuterium Engine destroyed. 02429_ Slammed into Y-54 Guardian. 02439_ M-13 Machinist destroyed. 02442_ Slammed into Y-54 Guardian. 02446_ Sml. Storage Unit destroyed. 02447_ Slammed into Y-54 Guardian. 02448_ R-10 Processor collects Recalibrator. Map ----- +----------------------------------------------------+ | ?????????????????????????????????????????????????? | | ?????????????????????????????????????????????????? | | ?????????????????????????????????????????????????? | | ?????????????????????????????????????????????????? | | ?????????????????????????????????????????????????? | | ?????????????????????????????????????????????????? | | ?????????????????????????????????????????????????? | | ?????????????????????????????????????????????????? | | ?????????????????????????????????????????????????? | | ?????????????????????????????????????????????????? | | ?????????????????????? ???????????????????????? | | ????????????????????? ???????????????????????? | | ????????????????????? #??????????????????????? | | ?????????????????????? ??????????????????????? | | ?????????????????????? ??????????????????????? | | ??????????????????????# ??????????????????????? | | ??????????????????????# ??????????????????????? | | ??????????????????????# ??????????????????????? | | ??????????????????????# ??????????????????????? | | ??????????????????????# ??????????????????????? | | ??????????????????????# #??????????????????????? | | ??????????????????????# #??????????????????????? | | ????????????????????### ################???????? | | ????????????????????# Y# #???????? | | ????????????????????# # #???????? | | ????????????????????# @%R# "" "" #???????? | | ???????????????? + +% "" ""% ########? | | ????????????????????# R # """ """ !+ #? | | ????????????????????# # """ """! ########? | | ????????????????????# # """ "" %=#???????? | | ????????????????????### ### % |% #???????? | | ??????????????????????# T?# "" "" #???????? | | ??????????????????????# ?# ""R"" #???????? | | ??????????????????????# #?# """" #???????? | | ??????????????????????# ??# #???????? | | ??????????????????????# ??#######+######???????? | | ?????????????????????? ????### ############ | | ?????????????????????? "" | | ?????????????????????"" T | | ?????????????????????"" | | ??????????????????????" ######## ############ | | ???????????????????????? ???????#######??????????? | | ?????????????????????????????????????????????????? | | ?????????????????????????????????????????????????? | | ?????????????????????????????????????????????????? | | ????????????????????????????????????????????? | | ???????????????????????????????????????????? | | ????????????????????????????????????????????? | | ?????????????????????????????????????????????##### | | ?????????????????????????????????????????????????? | +----------------------------------------------------+ Best States ------------- Heat Dissipation 51 Energy Generation 23 Energy Capacity 335 Matter Stores 300 Matter Capacity 300 Sight Range 16 Terrain Scan Density 10 Armor Coverage 750 Evasion (%) 50 Recoil Reduction 2 Item Schematics ----------------- None Robot Schematics ------------------ None Fabricated ------------ Nothing Repaired ---------- Nothing Studied --------- None Alien Tech Used ----------------- None Achievements -------------- True Hacker Challenges ------------ None Game ------ Seed CompactBiocellShooter Manual? 0 Play Time 00:16:02 Cumulative 50.8 hours Start 2026.06.23 @ 17:57:01 End 2026.06.23 @ 18:10:59 Sessions 1 Manual Loads 0 Difficulty Rogue Special Mode None Game No. 106 Rogue 106 Adventurer 0 Explorer 0 Win Type - Total 0 Types 0/0/0/0/0/0/0/0/0/0 Lore% 27 Gallery% 24 Achievement% 22 Wizard Run 0 Options --------- Layout 0 ASCII 0 Keyboard 0 Movement Mouse Keybinds 0 Fullscreen 2 Font 24/Smallcaps Map View 76x50 Zoom Use 0% Tactical HUD 1 Map Filters NONE Filters NONE Steam 1 RUN: 7c4de933-3113-44c2-b9e8-b6a0778f76b8